[Event "Titled Tuesday Blitz March 14 Early 2023"]
[White "Kraus, Tomas"]
[Black "Garcia Pantoja, Roberto"]
[WhiteFideId "331708"]
[BlackFideId "3509265"]
[WhiteElo "2389"]
[BlackElo "2544"]
[Result "0-1"]
[Round "01"]
[TimeControl "180+2"]
[Date "2023.03.14"]
[WhiteClock "0:01:49"]
[BlackClock "0:02:04"]

1. e4 {[%clk 0:02:56]}  c5 {[%clk 0:02:59]} 2. Nc3 {[%clk 0:02:56]}  d6 {[%clk 0:02:59]} 3. f4 {[%clk 0:02:56]}  g6 {[%clk 0:02:58]} 4. Nf3 {[%clk 0:02:57]}  Bg7 {[%clk 0:02:58]} 5. g3 {[%clk 0:02:57]}  Nc6 {[%clk 0:02:57]} 6. Bg2 {[%clk 0:02:57]}  e6 {[%clk 0:02:58]} 7. O-O {[%clk 0:02:57]}  Nge7 {[%clk 0:02:59]} 8. d3 {[%clk 0:02:57]}  O-O {[%clk 0:02:58]} 9. Be3 {[%clk 0:02:57]}  Nd4 {[%clk 0:02:59]} 10. e5 {[%clk 0:02:57]}  Nxf3+ {[%clk 0:02:36]} 11. Qxf3 {[%clk 0:02:56]}  Nf5 {[%clk 0:02:36]} 12. Bf2 {[%clk 0:02:56]}  Rb8 {[%clk 0:02:36]} 13. Ne4 {[%clk 0:02:47]}  dxe5 {[%clk 0:02:17]} 14. fxe5 {[%clk 0:02:47]}  b6 {[%clk 0:02:15]} 15. g4 {[%clk 0:02:09]}  Nd4 {[%clk 0:02:11]} 16. Qg3 {[%clk 0:01:49]}  Ne2+ {[%clk 0:02:04]} 0-1


[Site "https://www.chess.com"]

[Event "Titled Tuesday Blitz March 14 Early 2023"]
[White "Tanenbaum, Zachary"]
[Black "Fernandez Siles, Luis"]
[WhiteFideId "2060850"]
[BlackFideId "2209420"]
[WhiteElo "2175"]
[BlackElo "2186"]
[Result "1-0"]
[Round "01"]
[TimeControl "180+2"]
[Date "2023.03.14"]
[WhiteClock "0:00:59"]
[BlackClock "0:00:06"]

1. e4 {[%clk 0:02:44]}  c5 {[%clk 0:02:57]} 2. Nf3 {[%clk 0:02:44]}  Nc6 {[%clk 0:02:57]} 3. Nc3 {[%clk 0:02:44]}  g6 {[%clk 0:02:53]} 4. d4 {[%clk 0:02:44]}  cxd4 {[%clk 0:02:54]} 5. Nxd4 {[%clk 0:02:44]}  Bg7 {[%clk 0:02:54]} 6. Be3 {[%clk 0:02:45]}  Nf6 {[%clk 0:02:53]} 7. Bc4 {[%clk 0:02:45]}  O-O {[%clk 0:02:53]} 8. Bb3 {[%clk 0:02:45]}  d6 {[%clk 0:02:53]} 9. h3 {[%clk 0:02:45]}  Bd7 {[%clk 0:02:47]} 10. O-O {[%clk 0:02:45]}  Rc8 {[%clk 0:02:45]} 11. f4 {[%clk 0:02:44]}  a6 {[%clk 0:02:40]} 12. f5 {[%clk 0:02:41]}  Ne5 {[%clk 0:02:35]} 13. Qd2 {[%clk 0:02:38]}  Nc4 {[%clk 0:02:28]} 14. Bxc4 {[%clk 0:02:37]}  Rxc4 {[%clk 0:02:29]} 15. Nd5 {[%clk 0:01:51]}  Nxd5 {[%clk 0:01:54]} 16. exd5 {[%clk 0:01:52]}  Rc5 {[%clk 0:01:35]} 17. Nb3 {[%clk 0:01:34]}  Rc4 {[%clk 0:01:29]} 18. fxg6 {[%clk 0:01:22]}  hxg6 {[%clk 0:01:28]} 19. Bd4 {[%clk 0:01:11]}  Qc8 {[%clk 0:01:21]} 20. c3 {[%clk 0:01:11]}  a5 {[%clk 0:00:59]} 21. Rae1 {[%clk 0:01:04]}  a4 {[%clk 0:00:56]} 22. Bxg7 {[%clk 0:01:03]}  Kxg7 {[%clk 0:00:56]} 23. Nd4 {[%clk 0:01:04]}  Qd8 {[%clk 0:00:37]} 24. Qe2 {[%clk 0:01:01]}  e5 {[%clk 0:00:06]} 25. Qxc4 {[%clk 0:00:59]} 1-0


[Site "https://www.chess.com"]

[Event "Titled Tuesday Blitz March 14 Early 2023"]
[White "Rohith Krishna S"]
[Black "Fathy, Elameir"]
[WhiteFideId "46617051"]
[BlackFideId "10600396"]
[WhiteElo "2270"]
[BlackElo "2311"]
[Result "1-0"]
[Round "01"]
[TimeControl "180+2"]
[Date "2023.03.14"]
[WhiteClock "0:01:37"]
[BlackClock "0:00:19"]

1. e4 {[%clk 0:02:52]}  c6 {[%clk 0:02:59]} 2. Nf3 {[%clk 0:02:48]}  d5 {[%clk 0:02:51]} 3. e5 {[%clk 0:02:48]}  Bf5 {[%clk 0:02:45]} 4. d4 {[%clk 0:02:48]}  e6 {[%clk 0:02:44]} 5. Bd3 {[%clk 0:02:45]}  Bxd3 {[%clk 0:02:31]} 6. Qxd3 {[%clk 0:02:45]}  c5 {[%clk 0:01:59]} 7. c3 {[%clk 0:02:44]}  Nd7 {[%clk 0:01:40]} 8. O-O {[%clk 0:02:41]}  Ne7 {[%clk 0:01:40]} 9. Bg5 {[%clk 0:02:38]}  Qc7 {[%clk 0:01:38]} 10. Nbd2 {[%clk 0:02:37]}  Nc6 {[%clk 0:01:37]} 11. a3 {[%clk 0:02:32]}  Be7 {[%clk 0:01:36]} 12. h4 {[%clk 0:02:29]}  h6 {[%clk 0:01:35]} 13. Bxe7 {[%clk 0:02:28]}  Nxe7 {[%clk 0:01:36]} 14. b4 {[%clk 0:02:27]}  b6 {[%clk 0:01:21]} 15. a4 {[%clk 0:02:21]}  O-O-O {[%clk 0:01:16]} 16. bxc5 {[%clk 0:02:12]}  bxc5 {[%clk 0:01:12]} 17. Rfb1 {[%clk 0:01:56]}  c4 {[%clk 0:01:11]} 18. Qc2 {[%clk 0:01:57]}  Nc6 {[%clk 0:01:06]} 19. a5 {[%clk 0:01:56]}  f6 {[%clk 0:00:56]} 20. exf6 {[%clk 0:01:45]}  gxf6 {[%clk 0:00:55]} 21. Qa4 {[%clk 0:01:46]}  e5 {[%clk 0:00:38]} 22. dxe5 {[%clk 0:01:43]}  Ndxe5 {[%clk 0:00:36]} 23. Qb5 {[%clk 0:01:39]}  Rhg8 {[%clk 0:00:19]} 24. Qa6+ {[%clk 0:01:37]} 1-0


[Site "https://www.chess.com"]

[Event "Titled Tuesday Blitz March 14 Early 2023"]
[White "Alahakoon, Isuru"]
[Black "Fernandez Guillen, Ernesto J."]
[WhiteFideId "9900993"]
[BlackFideId "3512428"]
[WhiteElo "1995"]
[BlackElo "2423"]
[Result "0-1"]
[Round "01"]
[TimeControl "180+2"]
[Date "2023.03.14"]
[WhiteClock "0:00:20"]
[BlackClock "0:00:28"]

1. Nf3 {[%clk 0:02:54]}  Nf6 {[%clk 0:02:54]} 2. d4 {[%clk 0:02:53]}  g6 {[%clk 0:02:55]} 3. Nc3 {[%clk 0:02:53]}  d5 {[%clk 0:02:55]} 4. Bf4 {[%clk 0:02:52]}  Bg7 {[%clk 0:02:54]} 5. e3 {[%clk 0:02:53]}  O-O {[%clk 0:02:52]} 6. Nb5 {[%clk 0:02:53]}  Na6 {[%clk 0:02:51]} 7. h4 {[%clk 0:02:52]}  h5 {[%clk 0:02:51]} 8. Be2 {[%clk 0:02:51]}  c6 {[%clk 0:02:50]} 9. Nc3 {[%clk 0:02:51]}  Bg4 {[%clk 0:02:51]} 10. Ne5 {[%clk 0:02:50]}  Bxe2 {[%clk 0:02:50]} 11. Qxe2 {[%clk 0:02:51]}  Qc8 {[%clk 0:02:50]} 12. O-O-O {[%clk 0:02:47]}  b5 {[%clk 0:02:47]} 13. f3 {[%clk 0:02:39]}  b4 {[%clk 0:02:47]} 14. Nb1 {[%clk 0:02:38]}  c5 {[%clk 0:02:46]} 15. g4 {[%clk 0:02:33]}  hxg4 {[%clk 0:02:46]} 16. fxg4 {[%clk 0:02:33]}  cxd4 {[%clk 0:02:45]} 17. exd4 {[%clk 0:02:31]}  Ne4 {[%clk 0:02:43]} 18. h5 {[%clk 0:02:23]}  g5 {[%clk 0:02:42]} 19. h6 {[%clk 0:01:58]}  Bf6 {[%clk 0:02:35]} 20. Bh2 {[%clk 0:01:47]}  Rb8 {[%clk 0:02:18]} 21. Nd2 {[%clk 0:01:45]}  b3 {[%clk 0:02:17]} 22. axb3 {[%clk 0:01:41]}  Nxd2 {[%clk 0:02:05]} 23. Rxd2 {[%clk 0:01:33]}  Rxb3 {[%clk 0:02:03]} 24. Kb1 {[%clk 0:01:25]}  Rb6 {[%clk 0:01:50]} 25. h7+ {[%clk 0:01:13]}  Kh8 {[%clk 0:01:48]} 26. Nd3 {[%clk 0:01:02]}  Qc3 {[%clk 0:01:19]} 27. Be5 {[%clk 0:00:50]}  Nc7 {[%clk 0:00:32]} 28. Bxf6+ {[%clk 0:00:37]}  exf6 {[%clk 0:00:33]} 29. Qe7 {[%clk 0:00:35]}  Rfb8 {[%clk 0:00:32]} 30. b3 {[%clk 0:00:20]}  Qxd2 {[%clk 0:00:31]} 31. Qxc7 {[%clk 0:00:19]}  Rxb3+ {[%clk 0:00:28]} 32. cxb3 {[%clk 0:00:20]}  Qxd3+ {[%clk 0:00:28]} 33. Qc2 {[%clk 0:00:19]}  Rxb3+ {[%clk 0:00:28]} 34. Kc1 {[%clk 0:00:20]}  Rc3 {[%clk 0:00:28]} 0-1


[Site "https://www.chess.com"]

[Event "Titled Tuesday Blitz March 14 Early 2023"]
[White "Coelho, Ramyres Santana"]
[Black "Tan, Zhongyi"]
[WhiteFideId "2120690"]
[BlackFideId "8603642"]
[WhiteElo "1888"]
[BlackElo "2519"]
[Result "0-1"]
[Round "01"]
[TimeControl "180+2"]
[Date "2023.03.14"]
[WhiteClock "0:00:08"]
[BlackClock "0:00:20"]

1. e4 {[%clk 0:02:59]}  c5 {[%clk 0:02:59]} 2. Nf3 {[%clk 0:02:57]}  d6 {[%clk 0:02:59]} 3. d4 {[%clk 0:02:57]}  cxd4 {[%clk 0:03:00]} 4. Nxd4 {[%clk 0:02:58]}  Nf6 {[%clk 0:03:00]} 5. Nc3 {[%clk 0:02:58]}  g6 {[%clk 0:03:01]} 6. f4 {[%clk 0:02:57]}  Bg7 {[%clk 0:03:00]} 7. e5 {[%clk 0:02:58]}  dxe5 {[%clk 0:02:48]} 8. fxe5 {[%clk 0:02:58]}  Nd5 {[%clk 0:02:21]} 9. Bb5+ {[%clk 0:02:44]}  Kf8 {[%clk 0:02:15]} 10. O-O {[%clk 0:02:30]}  Nc6 {[%clk 0:01:31]} 11. Bxc6 {[%clk 0:02:18]}  bxc6 {[%clk 0:01:32]} 12. e6 {[%clk 0:02:03]}  f5 {[%clk 0:01:26]} 13. Kh1 {[%clk 0:01:51]}  Nxc3 {[%clk 0:01:18]} 14. bxc3 {[%clk 0:01:51]}  c5 {[%clk 0:01:17]} 15. Qf3 {[%clk 0:01:31]}  cxd4 {[%clk 0:00:56]} 16. Qxa8 {[%clk 0:01:29]}  h6 {[%clk 0:00:38]} 17. Rb1 {[%clk 0:01:18]}  Kg8 {[%clk 0:00:38]} 18. Rb8 {[%clk 0:01:12]}  Kh7 {[%clk 0:00:38]} 19. Ba3 {[%clk 0:01:06]}  dxc3 {[%clk 0:00:33]} 20. h3 {[%clk 0:01:02]}  Qc7 {[%clk 0:00:23]} 21. Rbb1 {[%clk 0:00:41]}  Bxe6 {[%clk 0:00:20]} 22. Qf3 {[%clk 0:00:41]}  Bxa2 {[%clk 0:00:19]} 23. Rb7 {[%clk 0:00:37]}  Qa5 {[%clk 0:00:18]} 24. Bxe7 {[%clk 0:00:33]}  Bd5 {[%clk 0:00:17]} 25. Bf6 {[%clk 0:00:19]}  Bxb7 {[%clk 0:00:17]} 26. Qxb7 {[%clk 0:00:19]}  Rg8 {[%clk 0:00:18]} 27. Rd1 {[%clk 0:00:16]}  Qb6 {[%clk 0:00:17]} 28. Rd7 {[%clk 0:00:15]}  Qxb7 {[%clk 0:00:17]} 29. Rxb7 {[%clk 0:00:16]}  Kh8 {[%clk 0:00:18]} 30. Bxg7+ {[%clk 0:00:08]}  Rxg7 {[%clk 0:00:19]} 31. Rb8+ {[%clk 0:00:09]}  Kh7 {[%clk 0:00:19]} 32. Rc8 {[%clk 0:00:09]}  a5 {[%clk 0:00:17]} 33. Rxc3 {[%clk 0:00:10]}  Ra7 {[%clk 0:00:18]} 34. Ra3 {[%clk 0:00:10]}  Kg7 {[%clk 0:00:16]} 35. Kg1 {[%clk 0:00:11]}  Kf6 {[%clk 0:00:17]} 36. Kf2 {[%clk 0:00:12]}  Ke5 {[%clk 0:00:17]} 37. Ke3 {[%clk 0:00:13]}  Kd5 {[%clk 0:00:18]} 38. Kd3 {[%clk 0:00:13]}  a4 {[%clk 0:00:17]} 39. c4+ {[%clk 0:00:13]}  Kc5 {[%clk 0:00:17]} 40. Kc3 {[%clk 0:00:14]}  f4 {[%clk 0:00:18]} 41. Ra1 {[%clk 0:00:13]}  a3 {[%clk 0:00:17]} 42. Kb3 {[%clk 0:00:12]}  a2 {[%clk 0:00:17]} 43. Kb2 {[%clk 0:00:05]}  g5 {[%clk 0:00:16]} 44. Rc1 {[%clk 0:00:06]}  a1=Q+ {[%clk 0:00:15]} 45. Rxa1 {[%clk 0:00:07]}  Rxa1 {[%clk 0:00:16]} 46. Kxa1 {[%clk 0:00:08]}  Kxc4 {[%clk 0:00:17]} 47. Kb2 {[%clk 0:00:08]}  Kd3 {[%clk 0:00:17]} 48. h4 {[%clk 0:00:08]}  g4 {[%clk 0:00:17]} 49. Kc1 {[%clk 0:00:08]}  f3 {[%clk 0:00:18]} 50. gxf3 {[%clk 0:00:08]}  gxf3 {[%clk 0:00:18]} 51. Kd1 {[%clk 0:00:09]}  f2 {[%clk 0:00:19]} 52. h5 {[%clk 0:00:08]}  f1=Q# {[%clk 0:00:20]} 0-1


[Site "https://www.chess.com"]

[Event "Titled Tuesday Blitz March 14 Early 2023"]
[White "Liyanage, Ranindu Dilshan"]
[Black "Liu, Casper"]
[WhiteFideId "9915834"]
[BlackFideId "1454153"]
[WhiteElo "2199"]
[BlackElo "2221"]
[Result "1-0"]
[Round "01"]
[TimeControl "180+2"]
[Date "2023.03.14"]
[WhiteClock "0:02:32"]
[BlackClock "0:01:09"]

1. e4 {[%clk 0:02:57]}  c5 {[%clk 0:02:56]} 2. Nc3 {[%clk 0:02:56]}  g6 {[%clk 0:02:53]} 3. f4 {[%clk 0:02:55]}  Bg7 {[%clk 0:02:54]} 4. Nf3 {[%clk 0:02:55]}  Nc6 {[%clk 0:02:54]} 5. Bb5 {[%clk 0:02:55]}  Nd4 {[%clk 0:02:52]} 6. O-O {[%clk 0:02:55]}  Nxb5 {[%clk 0:02:50]} 7. Nxb5 {[%clk 0:02:56]}  a6 {[%clk 0:02:45]} 8. Nc3 {[%clk 0:02:55]}  d6 {[%clk 0:02:46]} 9. d3 {[%clk 0:02:54]}  Nf6 {[%clk 0:02:46]} 10. Qe1 {[%clk 0:02:53]}  O-O {[%clk 0:02:45]} 11. Qh4 {[%clk 0:02:50]}  b5 {[%clk 0:02:35]} 12. f5 {[%clk 0:02:50]}  gxf5 {[%clk 0:02:33]} 13. Bh6 {[%clk 0:02:49]}  b4 {[%clk 0:02:31]} 14. Ne2 {[%clk 0:02:45]}  fxe4 {[%clk 0:02:26]} 15. dxe4 {[%clk 0:02:46]}  e5 {[%clk 0:02:23]} 16. Ng5 {[%clk 0:02:39]}  Nxe4 {[%clk 0:01:09]} 17. Qxe4 {[%clk 0:02:33]}  Bxh6 {[%clk 0:01:09]} 18. Qxh7# {[%clk 0:02:32]} 1-0


[Site "https://www.chess.com"]

[Event "Titled Tuesday Blitz March 14 Early 2023"]
[White "Seo, Jung Min"]
[Black "Rostomyan, Mikayel"]
[WhiteFideId "1734687"]
[BlackFideId "13313754"]
[WhiteElo "2468"]
[BlackElo "2009"]
[Result "1-0"]
[Round "01"]
[TimeControl "180+2"]
[Date "2023.03.14"]
[WhiteClock "0:01:57"]
[BlackClock "0:00:23"]

1. Nf3 {[%clk 0:02:59]}  Nf6 {[%clk 0:02:43]} 2. c4 {[%clk 0:02:59]}  c5 {[%clk 0:02:42]} 3. Nc3 {[%clk 0:02:59]}  Nc6 {[%clk 0:02:40]} 4. g3 {[%clk 0:02:59]}  g6 {[%clk 0:02:40]} 5. Bg2 {[%clk 0:02:59]}  Bg7 {[%clk 0:02:39]} 6. O-O {[%clk 0:02:59]}  O-O {[%clk 0:02:33]} 7. d4 {[%clk 0:02:59]}  cxd4 {[%clk 0:02:28]} 8. Nxd4 {[%clk 0:02:58]}  e5 {[%clk 0:02:28]} 9. Ndb5 {[%clk 0:02:58]}  a6 {[%clk 0:01:57]} 10. Nd6 {[%clk 0:02:58]}  Ne8 {[%clk 0:01:57]} 11. Nxe8 {[%clk 0:02:56]}  Rxe8 {[%clk 0:01:56]} 12. Ne4 {[%clk 0:02:55]}  Rb8 {[%clk 0:01:10]} 13. Nd6 {[%clk 0:02:54]}  Re6 {[%clk 0:01:11]} 14. c5 {[%clk 0:02:50]}  b6 {[%clk 0:01:04]} 15. Bd5 {[%clk 0:02:46]}  Re7 {[%clk 0:01:02]} 16. Bg5 {[%clk 0:02:41]}  bxc5 {[%clk 0:00:55]} 17. Nxf7 {[%clk 0:02:37]}  Qf8 {[%clk 0:00:52]} 18. Nxe5+ {[%clk 0:02:25]}  Kh8 {[%clk 0:00:48]} 19. Bxe7 {[%clk 0:02:24]}  Nxe7 {[%clk 0:00:44]} 20. Nf7+ {[%clk 0:02:21]}  Kg8 {[%clk 0:00:42]} 21. Nd6+ {[%clk 0:02:17]}  Kh8 {[%clk 0:00:42]} 22. Nxc8 {[%clk 0:02:13]}  Nxc8 {[%clk 0:00:40]} 23. Rb1 {[%clk 0:02:06]}  Ne7 {[%clk 0:00:37]} 24. Bb3 {[%clk 0:02:04]}  Rb7 {[%clk 0:00:32]} 25. e3 {[%clk 0:02:04]}  Qf5 {[%clk 0:00:27]} 26. Qd6 {[%clk 0:02:00]}  Qf6 {[%clk 0:00:23]} 27. Qxc5 {[%clk 0:01:57]} 1-0


[Site "https://www.chess.com"]

[Event "Titled Tuesday Blitz March 14 Early 2023"]
[White "Klepikov, Nikita"]
[Black "Maatman, Nick"]
[WhiteFideId "24145220"]
[BlackFideId "1040391"]
[WhiteElo "2025"]
[BlackElo "2702"]
[Result "1-0"]
[Round "01"]
[TimeControl "180+2"]
[Date "2023.03.14"]
[WhiteClock "0:00:49"]
[BlackClock "0:00:16"]

1. e4 {[%clk 0:02:58]}  c6 {[%clk 0:02:56]} 2. d4 {[%clk 0:02:58]}  d5 {[%clk 0:02:56]} 3. Nd2 {[%clk 0:02:59]}  dxe4 {[%clk 0:02:56]} 4. Nxe4 {[%clk 0:03:00]}  Nf6 {[%clk 0:02:56]} 5. Nxf6+ {[%clk 0:03:00]}  exf6 {[%clk 0:02:57]} 6. c3 {[%clk 0:03:01]}  Bd6 {[%clk 0:02:58]} 7. Bd3 {[%clk 0:03:02]}  O-O {[%clk 0:02:57]} 8. Qc2 {[%clk 0:03:02]}  Re8+ {[%clk 0:02:57]} 9. Ne2 {[%clk 0:03:03]}  h5 {[%clk 0:02:57]} 10. h3 {[%clk 0:03:02]}  h4 {[%clk 0:02:49]} 11. Be3 {[%clk 0:03:01]}  Nd7 {[%clk 0:02:49]} 12. O-O-O {[%clk 0:03:01]}  Nf8 {[%clk 0:02:45]} 13. c4 {[%clk 0:02:56]}  Be6 {[%clk 0:02:23]} 14. Nc3 {[%clk 0:02:42]}  Bb4 {[%clk 0:02:12]} 15. g3 {[%clk 0:02:37]}  hxg3 {[%clk 0:02:06]} 16. Rhg1 {[%clk 0:02:22]}  Bxc3 {[%clk 0:01:49]} 17. Qxc3 {[%clk 0:02:20]}  gxf2 {[%clk 0:01:39]} 18. Bxf2 {[%clk 0:02:19]}  Qc7 {[%clk 0:01:17]} 19. Bg3 {[%clk 0:02:12]}  Qd7 {[%clk 0:01:16]} 20. h4 {[%clk 0:02:11]}  Bf5 {[%clk 0:01:13]} 21. h5 {[%clk 0:01:55]}  Bxd3 {[%clk 0:01:08]} 22. Qxd3 {[%clk 0:01:52]}  Qe6 {[%clk 0:01:00]} 23. Bf4 {[%clk 0:01:30]}  Rad8 {[%clk 0:00:24]} 24. Rxg7+ {[%clk 0:01:09]}  Kxg7 {[%clk 0:00:23]} 25. Rg1+ {[%clk 0:01:09]}  Ng6 {[%clk 0:00:17]} 26. hxg6 {[%clk 0:00:52]}  fxg6 {[%clk 0:00:18]} 27. Qxg6+ {[%clk 0:00:49]}  Kf8 {[%clk 0:00:16]} 28. Qg7# {[%clk 0:00:49]} 1-0


[Site "https://www.chess.com"]

[Event "Titled Tuesday Blitz March 14 Early 2023"]
[White "Krysa, Leandro"]
[Black "Buscar, Michael"]
[WhiteFideId "116807"]
[BlackFideId "2603616"]
[WhiteElo "2485"]
[BlackElo "2010"]
[Result "1-0"]
[Round "01"]
[TimeControl "180+2"]
[Date "2023.03.14"]
[WhiteClock "0:00:30"]
[BlackClock "0:00:03"]

1. e4 {[%clk 0:02:59]}  c5 {[%clk 0:02:58]} 2. Nf3 {[%clk 0:02:59]}  Nc6 {[%clk 0:02:58]} 3. d4 {[%clk 0:02:59]}  cxd4 {[%clk 0:02:59]} 4. Nxd4 {[%clk 0:03:00]}  Nf6 {[%clk 0:02:59]} 5. Nc3 {[%clk 0:02:59]}  e5 {[%clk 0:02:59]} 6. Ndb5 {[%clk 0:02:59]}  h6 {[%clk 0:03:00]} 7. Nd5 {[%clk 0:02:52]}  Nxd5 {[%clk 0:03:00]} 8. exd5 {[%clk 0:02:52]}  a6 {[%clk 0:03:01]} 9. Nc3 {[%clk 0:02:42]}  Nd4 {[%clk 0:03:00]} 10. Bd3 {[%clk 0:02:31]}  d6 {[%clk 0:02:52]} 11. O-O {[%clk 0:02:30]}  Be7 {[%clk 0:02:47]} 12. a4 {[%clk 0:02:30]}  O-O {[%clk 0:02:38]} 13. a5 {[%clk 0:02:30]}  Bd7 {[%clk 0:02:34]} 14. Bd2 {[%clk 0:02:22]}  f5 {[%clk 0:02:17]} 15. Na4 {[%clk 0:02:22]}  Bxa4 {[%clk 0:01:22]} 16. Rxa4 {[%clk 0:02:21]}  f4 {[%clk 0:01:23]} 17. c3 {[%clk 0:02:16]}  Nf5 {[%clk 0:01:23]} 18. Qg4 {[%clk 0:02:10]}  Qd7 {[%clk 0:01:06]} 19. Rb4 {[%clk 0:02:03]}  Bd8 {[%clk 0:00:40]} 20. Ra1 {[%clk 0:01:59]}  Rc8 {[%clk 0:00:26]} 21. h3 {[%clk 0:01:57]}  Rc7 {[%clk 0:00:20]} 22. Re1 {[%clk 0:01:50]}  Ne7 {[%clk 0:00:20]} 23. Qxd7 {[%clk 0:01:35]}  Rxd7 {[%clk 0:00:21]} 24. Ra1 {[%clk 0:01:32]}  g5 {[%clk 0:00:20]} 25. Be4 {[%clk 0:01:28]}  Kg7 {[%clk 0:00:19]} 26. Be1 {[%clk 0:01:21]}  Ng8 {[%clk 0:00:19]} 27. f3 {[%clk 0:01:19]}  Nf6 {[%clk 0:00:19]} 28. Bf2 {[%clk 0:01:20]}  Nxe4 {[%clk 0:00:17]} 29. Rxe4 {[%clk 0:01:19]}  Be7 {[%clk 0:00:12]} 30. c4 {[%clk 0:01:16]}  Rc8 {[%clk 0:00:13]} 31. b4 {[%clk 0:01:16]}  Kf6 {[%clk 0:00:12]} 32. Rc1 {[%clk 0:01:14]}  Rdc7 {[%clk 0:00:11]} 33. Bb6 {[%clk 0:01:11]}  Rd7 {[%clk 0:00:12]} 34. Kf2 {[%clk 0:01:10]}  h5 {[%clk 0:00:11]} 35. Ke2 {[%clk 0:01:11]}  Kf5 {[%clk 0:00:11]} 36. Rd1 {[%clk 0:01:05]}  Rg8 {[%clk 0:00:11]} 37. c5 {[%clk 0:01:04]}  dxc5 {[%clk 0:00:09]} 38. bxc5 {[%clk 0:01:04]}  g4 {[%clk 0:00:10]} 39. hxg4+ {[%clk 0:01:00]}  hxg4 {[%clk 0:00:10]} 40. d6 {[%clk 0:00:58]}  Bd8 {[%clk 0:00:09]} 41. Bxd8 {[%clk 0:00:44]}  Rgxd8 {[%clk 0:00:09]} 42. Rd5 {[%clk 0:00:43]}  Re8 {[%clk 0:00:08]} 43. Kd3 {[%clk 0:00:43]}  gxf3 {[%clk 0:00:04]} 44. gxf3 {[%clk 0:00:44]}  Rh7 {[%clk 0:00:04]} 45. d7 {[%clk 0:00:41]}  Rd8 {[%clk 0:00:02]} 46. Rdxe5+ {[%clk 0:00:34]}  Kf6 {[%clk 0:00:03]} 47. Re6+ {[%clk 0:00:32]}  Kf5 {[%clk 0:00:03]} 48. R4e5# {[%clk 0:00:30]} 1-0


[Site "https://www.chess.com"]

[Event "Titled Tuesday Blitz March 14 Early 2023"]
[White "Manon-og, Ramon Jr."]
[Black "Starozhilov, Leonid"]
[WhiteFideId "5200776"]
[BlackFideId "14106752"]
[WhiteElo "2323"]
[BlackElo "2402"]
[Result "1-0"]
[Round "01"]
[TimeControl "180+2"]
[Date "2023.03.14"]
[WhiteClock "0:01:28"]
[BlackClock "0:00:46"]

1. e4 {[%clk 0:02:57]}  g6 {[%clk 0:02:59]} 2. d4 {[%clk 0:02:57]}  Bg7 {[%clk 0:02:58]} 3. Nc3 {[%clk 0:02:57]}  d6 {[%clk 0:02:58]} 4. Be3 {[%clk 0:02:57]}  a6 {[%clk 0:02:59]} 5. Qd2 {[%clk 0:02:57]}  b5 {[%clk 0:02:59]} 6. a3 {[%clk 0:02:58]}  Nd7 {[%clk 0:02:58]} 7. Nf3 {[%clk 0:02:57]}  Bb7 {[%clk 0:02:54]} 8. Be2 {[%clk 0:02:56]}  Ngf6 {[%clk 0:02:54]} 9. e5 {[%clk 0:02:55]}  Ng4 {[%clk 0:02:39]} 10. e6 {[%clk 0:02:50]}  fxe6 {[%clk 0:02:36]} 11. Ng5 {[%clk 0:02:49]}  Nxe3 {[%clk 0:02:36]} 12. fxe3 {[%clk 0:02:30]}  Nf8 {[%clk 0:02:23]} 13. O-O {[%clk 0:02:21]}  Qd7 {[%clk 0:02:10]} 14. Nf7 {[%clk 0:02:15]}  Rg8 {[%clk 0:02:04]} 15. e4 {[%clk 0:02:14]}  Bf6 {[%clk 0:01:40]} 16. Nh6 {[%clk 0:02:13]}  Rh8 {[%clk 0:01:40]} 17. Bg4 {[%clk 0:02:07]}  Qc6 {[%clk 0:01:34]} 18. e5 {[%clk 0:01:45]}  dxe5 {[%clk 0:01:29]} 19. Bf3 {[%clk 0:01:40]}  Qb6 {[%clk 0:01:25]} 20. Bxb7 {[%clk 0:01:40]}  Qxb7 {[%clk 0:01:13]} 21. dxe5 {[%clk 0:01:38]}  Bxe5 {[%clk 0:01:06]} 22. Nf7 {[%clk 0:01:38]}  Nd7 {[%clk 0:00:46]} 23. Nxh8 {[%clk 0:01:35]}  Bxh8 {[%clk 0:00:47]} 24. Rad1 {[%clk 0:01:29]}  O-O-O {[%clk 0:00:46]} 25. Qxd7+ {[%clk 0:01:28]} 1-0


[Site "https://www.chess.com"]

[Event "Titled Tuesday Blitz March 14 Early 2023"]
[White "Samant Aditya S"]
[Black "Jiganchine, Roman"]
[WhiteFideId "35080580"]
[BlackFideId "2603667"]
[WhiteElo "2362"]
[BlackElo "2316"]
[Result "1-0"]
[Round "01"]
[TimeControl "180+2"]
[Date "2023.03.14"]
[WhiteClock "0:00:30"]
[BlackClock "0:00:18"]

1. e4 {[%clk 0:02:57]}  c6 {[%clk 0:02:59]} 2. d3 {[%clk 0:02:54]}  d5 {[%clk 0:02:59]} 3. Nd2 {[%clk 0:02:54]}  e5 {[%clk 0:02:56]} 4. Ngf3 {[%clk 0:02:54]}  Bd6 {[%clk 0:02:56]} 5. g3 {[%clk 0:02:45]}  Nf6 {[%clk 0:02:54]} 6. Bg2 {[%clk 0:02:46]}  O-O {[%clk 0:02:50]} 7. O-O {[%clk 0:02:46]}  Re8 {[%clk 0:02:49]} 8. Nh4 {[%clk 0:02:39]}  a5 {[%clk 0:02:39]} 9. a4 {[%clk 0:02:34]}  Nbd7 {[%clk 0:02:35]} 10. h3 {[%clk 0:02:15]}  b6 {[%clk 0:02:18]} 11. Nf5 {[%clk 0:02:05]}  Bf8 {[%clk 0:02:17]} 12. Re1 {[%clk 0:01:57]}  Ba6 {[%clk 0:02:15]} 13. Ne3 {[%clk 0:01:26]}  Nc5 {[%clk 0:02:05]} 14. b3 {[%clk 0:01:16]}  dxe4 {[%clk 0:01:37]} 15. dxe4 {[%clk 0:01:17]}  Qd4 {[%clk 0:01:37]} 16. Rb1 {[%clk 0:01:18]}  Rad8 {[%clk 0:01:33]} 17. Qf3 {[%clk 0:00:57]}  Qc3 {[%clk 0:01:14]} 18. Rd1 {[%clk 0:00:52]}  b5 {[%clk 0:01:00]} 19. Bb2 {[%clk 0:00:50]}  Qb4 {[%clk 0:00:59]} 20. c3 {[%clk 0:00:48]}  Rxd2 {[%clk 0:00:37]} 21. cxb4 {[%clk 0:00:44]}  Rxd1+ {[%clk 0:00:37]} 22. Rxd1 {[%clk 0:00:41]}  Nxb3 {[%clk 0:00:35]} 23. axb5 {[%clk 0:00:39]}  cxb5 {[%clk 0:00:34]} 24. bxa5 {[%clk 0:00:39]}  Nxa5 {[%clk 0:00:34]} 25. Bf1 {[%clk 0:00:36]}  Bb7 {[%clk 0:00:30]} 26. Nd5 {[%clk 0:00:33]}  Nxd5 {[%clk 0:00:29]} 27. exd5 {[%clk 0:00:34]}  e4 {[%clk 0:00:28]} 28. Qc3 {[%clk 0:00:33]}  Nc4 {[%clk 0:00:27]} 29. Bxc4 {[%clk 0:00:32]}  bxc4 {[%clk 0:00:26]} 30. Qxc4 {[%clk 0:00:33]}  e3 {[%clk 0:00:26]} 31. fxe3 {[%clk 0:00:32]}  Rxe3 {[%clk 0:00:22]} 32. Kf2 {[%clk 0:00:30]}  Re8 {[%clk 0:00:19]} 33. d6 {[%clk 0:00:30]}  Rc8 {[%clk 0:00:18]} 34. Qxc8 {[%clk 0:00:29]}  Bxc8 {[%clk 0:00:18]} 35. d7 {[%clk 0:00:30]} 1-0


[Site "https://www.chess.com"]